[Event "SixDays Budapest IM-A January 2024"]
[Site "Budapest"]
[Date "2024.01.31"]
[Round "7.3"]
[White "Polyik, Peter"]
[Black "Cieslak, Patryk"]
[Result "0-1"]
[ECO "C11"]
[WhiteElo "2289"]
[BlackElo "2284"]
[Annotator "TA"]
[PlyCount "54"]
[EventDate "2024.01.26"]
[EventType "tourn"]
[EventCountry "HUN"]
[SourceTitle "playchess.com"]
[Source "ChessBase"]
[SourceQuality "1"]
[TimeControl "5400+30"]

{[%evp 20,54,7,11,7,2,17,6,4,7,6,0,15,17,28,0,60,3,4,0,18,44,27,27,43,36,69,34,20,16,160,-142,-145,-390,-383,-795,-802]} 1. e4 {[%emt 0:00:03][%cal Be2e4,Be4e5][%mdl 32]} e6 {[%emt 0:00:11]} 2. d4 {[%emt 0:00:10]} d5 {[%emt 0:00:02]} 3. Nc3 {[%emt 0:00:12]} Nf6 {[%emt 0:00:04]} 4. e5 {[%emt 0:00:14]} Nfd7 {[%emt 0:00:02]} 5. f4 {[%emt 0:00:09]} c5 {[%emt 0:00:03]} 6. Nf3 {[%emt 0:00:10]} Nc6 {[%emt 0:00:04]} 7. Be3 {[%emt 0:00:07]} cxd4 {[%emt 0:01:28]} 8. Nxd4 {[%emt 0:00:08]} Qb6 {[%emt 0:00:02]} 9. Qd2 {[%emt 0:03:57]} Qxb2 {[%emt 0:00:07]} 10. Rb1 {[%emt 0:00:07][%cal Ba1b1,Bb1b3,Bb3b7][%mdl 32]} Qa3 {[%emt 0:00:03]} 11. Bb5 {[%emt 0:00:47]} Nxd4 {[%emt 0:00:11]} 12. Bxd4 {[%emt 0:00:06][%cal Of4f5]} a6 {[%emt 0:00:22]} 13. Bxd7+ {[%emt 0:00:14]} Bxd7 {[%emt 0:00:02] The position is equal.} 14. Rb3 {[%emt 0:00:09]} Qe7 {[%emt 0:00:03]} (14... Qa5 $2 15. Bb6 $18 (15. Rxb7 Bb4 $17) (15. Rxb7 Bb4 $17)) 15. Rxb7 {[%emt 0:00:04]} Rc8 {[%emt 0:00:19]} 16. O-O {[%emt 0:23:59]} Qd8 {[%emt 0:00:02]} 17. Rfb1 {[%emt 0:04:26][%cal Of4f5]} Rc4 {[%emt 0:14:30]} (17... Bc5 $1 $11) 18. R1b3 {[%emt 0:17:56]} (18. Qd3 $14) 18... Be7 {[%emt 0:06:41][%cal Bf8e7,Be7g5,Bg5f4][%mdl 32] [#]} 19. f5 $1 {[%emt 0:28:21]} Bg5 {[%emt 0:14:28]} (19... Bc8 20. Rb8) 20. Qd3 {[%emt 0:00:50][%cal Oc3e4]} O-O {[%emt 0:04:21] [#]} 21. f6 {[%emt 0:08:14]} gxf6 {[%emt 0:02:50]} (21... Qc8 22. fxg7) 22. exf6 {[%emt 0:00:19][%cal Od3g3] aiming for Qg3!} Kh8 {[%emt 0:02:49][%cal Og5f4] [#]} 23. Ne4 $1 {[%emt 0:01:37]} Bf4 {[%emt 0:06:17][%cal Od7a4] Strongly threatening ...Ba4!} 24. Nd2 {[%emt 0:04:30]} e5 {[%emt 0:14:35] [#]} 25. Bxe5 $2 {[%emt 0:01:03]} (25. Nxc4 $2 dxc4 26. Qxc4 Be6 $19 (26... exd4 $2 27. Qxd4 Bb5 28. Qxd8 $17)) (25. Bb6 $1 $16 {[%cal Rb6d8] is necessary to keep the advantage.} Qc8 26. Nxc4 (26. Qxd5 $2 Be6 $19) (26. Rxd7 Bxd2 27. Qxd5 Rxc2 $15) 26... dxc4 (26... Qxb7 $2 27. Bc5 $18) 27. Qxd7 Qxd7 28. Rxd7 cxb3 29. axb3 (29. cxb3 h6 $18)) 25... Bxe5 $17 {[%emt 0:02:28] This pair of bishops is nice.} 26. Qxd5 {[%emt 0:00:55]} (26. Rxd7 $17 {was worth a try.} Bd4+ (26... Qxd7 27. Nxc4 Bxf6 28. Ne3 $11) 27. Qxd4 Rxd4 28. Rxd8 Rxd8 29. Nf3) 26... Bd4+ $19 {[%emt 0:04:55]} ({Stronger than} 26... Rxc2 27. Rxd7 Qxf6 28. Rf3 Qb6+ 29. Kh1 $11) 27. Kh1 $2 {[%emt 0:00:10]} (27. Kf1 Qxf6+ (27... Rxc2 28. Rxd7 Qxf6+ 29. Rf3 $11) 28. Rf3) 27... Rxc2 {[%emt 0:00:15] Weighted Error Value: White=0.65/Black=0.22 (precise) .  Loses game:     	White=1     	---        Mistake:       	White=3     	Black=2      Inaccurate:     	White=2     	---        OK:         	White=4     	Black=6      Best:        	White=1     	Black=1      Brilliant:      	White=1     	---} 0-1

[Event "SixDays Budapest IM-A January 2024"]
[Site "Budapest"]
[Date "2024.01.31"]
[Round "7.4"]
[White "Lim, Zhuo Ren"]
[Black "Urhegyi, Marton"]
[Result "0-1"]
[ECO "A37"]
[WhiteElo "2218"]
[BlackElo "2255"]
[Annotator "TA"]
[PlyCount "62"]
[EventDate "2024.01.26"]
[EventType "tourn"]
[EventCountry "HUN"]
[SourceTitle "playchess.com"]
[Source "ChessBase"]
[SourceQuality "1"]
[TimeControl "5400+30"]

{[%evp 20,62,0,-1,0,0,0,0,0,0,0,-2,0,-2,9,0,0,-25,0,-15,-43,-52,-36,-37,0,0,0,0,79,81,70,-56,-50,-978,-966,-29984,-29985,-29985,-29986,-29988,-2080,-1757,-1697,-29986,83]} 1. Nf3 {[%emt 0:24:05]} c5 {[%emt 0:00:32]} 2. g3 {[%emt 0:00:14]} Nc6 {[%emt 0:00:08]} 3. Bg2 {[%emt 0:00:13]} g6 {[%emt 0:00:13]} 4. c4 {[%emt 0:00:15]} Bg7 {[%emt 0:00:06]} 5. Nc3 {[%emt 0:00:07]} e5 {[%emt 0:00:18]} 6. a3 {[%emt 0:00:22]} Nge7 {[%emt 0:00:19]} 7. O-O {[%emt 0:00:23]} O-O {[%emt 0:00:19]} 8. Ne1 {[%emt 0:01:05]} d6 {[%emt 0:02:05]} 9. Nc2 {[%emt 0:00:16]} Be6 {[%emt 0:03:29]} 10. Ne3 {[%emt 0:00:11]} Qd7 {[%emt 0:01:38]} 11. Rb1 {[%emt 0:01:26]} Bh3 {[%emt 0:02:31]} 12. d3 {[%emt 0:00:55]} Bxg2 {[%emt 0:03:43]} 13. Kxg2 {[%emt 0:00:08]} f5 {[%emt 0:01:31][%cal Bf7f5,Bf5f4][%mdl 32] The position is equal.} 14. f3 {[%emt 0:03:56]} f4 {[%emt 0:16:46]} 15. Ned5 {[%emt 0:00:12]} Nxd5 {[%emt 0:03:55]} 16. Nxd5 {[%emt 0:01:15]} g5 {[%emt 0:09:32]} (16... Ne7 {simplifies} 17. Nxe7+ Qxe7 18. e3 fxe3 19. Bxe3 b6) 17. g4 {[%emt 0:11:13]} h5 {[%emt 0:05:22]} 18. h3 {[%emt 0:00:11]} Kf7 {[%emt 0:03:08]} 19. b4 {[%emt 0:02:24]} ({Of course not} 19. gxh5 Rh8 20. Nc3 Rxh5 $17) 19... Rh8 {[%emt 0:04:19]} 20. bxc5 {[%emt 0:00:19]} dxc5 {[%emt 0:02:15]} 21. Nc3 {[%emt 0:00:29]} b6 {[%emt 0:06:51]} 22. Ne4 {[%emt 0:02:25]} Bf6 {[%emt 0:03:26]} 23. Qa4 {[%emt 0:02:04]} Rh6 {[%emt 0:04:19]} (23... Be7 $11) 24. Rxb6 $16 {[%emt 0:09:36]} Be7 {[%emt 0:07:09]} 25. Ra6 {[%emt 0:02:33]} (25. Nf2 $1 $14) 25... hxg4 $1 $15 {[%emt 0:04:13]} 26. hxg4 {[%emt 0:02:04][%mdl 8192] White does not recover from this.} (26. Nf2 $15 gxh3+ 27. Kh2) 26... Rah8 $19 {[%emt 0:01:06]} 27. Kf2 {[%emt 0:08:42] [#]} Qd4+ $1 {[%emt 0:01:16]} 28. Ke1 {[%emt 0:00:05] [#]} Rh1 $1 {[%emt 0:01:14]} 29. Nf2 {[%emt 0:07:43]} (29. Ng3 fxg3) 29... Qc3+ {[%emt 0:01:03] White is weak on the dark squares} (29... Rxf1+ $142 30. Kxf1 Rh2 31. e3 fxe3 32. Bxe3 Qxe3 33. Qc2 Nd4 (33... Qxf3 {is a self mate.} 34. Ke1 Nd4 35. Qb2 Qg2 36. Qe2 Nxe2 37. Kd2 Qxf2 38. Rf6+ Bxf6 39. a4 Ng3+ 40. Kd1 Rh1#) 34. Qb2 Nxf3 35. Rf6+ Bxf6 (35... Kxf6 {leads to mate.} 36. Ne4+ Kg6 37. Qxh2 Nxh2+ 38. Kg2 Qe2+ 39. Nf2 Nxg4 40. Kg3 Qxf2+ 41. Kxg4 Qg2#) 36. Qb7+ Be7 (36... Kg6 $2 37. Qe4+ Qxe4 38. Nxe4 $19) 37. Qd5+ Kg7 38. Qxf3 Qxf3 39. Ke1 Qxf2+ 40. Kd1 Rh1#) 30. Bd2 {[%emt 0:00:14]} Qa1+ {[%emt 0:00:28]} 31. Qd1 {[%emt 0:06:03]} Rxf1+ {[%emt 0:00:11][%mdl 32768] Weighted Error Value: White=0.72/Black=0.23 (precise) .  Loses game:     	White=1     	---        Mistake:       	White=1     	Black=1      Inaccurate:     	White=2     	Black=1      OK:         	White=7     	Black=5      Best:        	White=1     	Black=2      Strong:       	---       	Black=1     . Loss on time!?} 0-1

[Event "SixDays Budapest IM-A January 2024"]
[Site "Budapest"]
[Date "2024.01.31"]
[Round "7.5"]
[White "Szalay-Ocsak, Bank"]
[Black "Hacker, Jonas"]
[Result "1/2-1/2"]
[ECO "B85"]
[WhiteElo "2165"]
[BlackElo "2420"]
[Annotator "TA"]
[PlyCount "45"]
[EventDate "2024.01.26"]
[EventType "tourn"]
[EventCountry "HUN"]
[SourceTitle "playchess.com"]
[Source "ChessBase"]
[SourceQuality "1"]
[TimeControl "5400+30"]

{[%evp 26,45,0,0,0,-16,-16,-33,-19,-12,-23,-45,0,0,0,0,0,0,0,0,0,0]} 1. e4 {[%emt 0:03:44]} c5 {[%emt 0:00:20]} 2. Nf3 {[%emt 0:00:10]} e6 {[%emt 0:00:06]} 3. d4 {[%emt 0:00:11]} cxd4 {[%emt 0:00:06]} 4. Nxd4 {[%emt 0:00:13]} Nc6 {[%emt 0:00:04]} 5. Nc3 {[%emt 0:00:13]} a6 {[%emt 0:02:03]} 6. Be2 {[%emt 0:01:40]} Qc7 {[%emt 0:01:09]} 7. Be3 {[%emt 0:00:53]} Nf6 {[%emt 0:02:36]} 8. O-O {[%emt 0:00:32]} Be7 {[%emt 0:01:12]} 9. f4 {[%emt 0:03:26]} d6 {[%emt 0:01:13]} 10. Qe1 {[%emt 0:02:04]} O-O {[%emt 0:01:50]} 11. Kh1 {[%emt 0:09:36]} Nxd4 {[%emt 0:02:14]} 12. Bxd4 {[%emt 0:00:17]} b5 {[%emt 0:01:11]} 13. e5 {[%emt 0:06:30]} dxe5 {[%emt 0:05:24]} 14. fxe5 {[%emt 0:03:11]} Nd7 {[%emt 0:04:56]} 15. Ne4 {[%emt 0:07:33][%cal Oe4f6] [#] Wards off Bc5. And now Nf6+! would win.} Bb7 {[%emt 0:19:18]} (15... Nxe5 $2 16. Qg3 $18) 16. Nf6+ {[%emt 0:03:10]} Nxf6 {[%emt 0:16:17] Black is slightly better.} (16... gxf6 $2 17. Qg3+ Kh8 18. exf6 Qxg3 19. fxe7+ $18) 17. exf6 {[%emt 0:00:21]} Bxf6 {[%emt 0:00:32]} 18. Rxf6 {[%emt 0:02:03]} gxf6 {[%emt 0:00:43]} (18... Rad8 $5 19. Qh4 Rxd4 (19... gxf6 20. Qg4+ Kh8 21. Bxf6#) 20. Qxd4 gxf6 21. Qxf6 Qxc2 $11) 19. Qh4 {[%emt 0:03:22] [#] Repels Qf4. White threatens Qg4+ and mate. The position is equal.} e5 $1 {[%emt 0:02:48]} (19... Qxc2 $2 20. Qxf6 Bxg2+ 21. Kg1 $18) 20. Bd3 {[%emt 0:01:04][%csl Gd3][%cal Rh4h7] A strong pair of Bishops.} Rfd8 {[%emt 0:01:28]} ({Inferior is} 20... exd4 21. Qxh7#) 21. Qh6 $1 {[%emt 0:01:05] Really sharp!} Rxd4 {[%emt 0:01:32]} ({Stronger than} 21... exd4 22. Bxh7+ Kh8 23. Bf5+ Kg8 24. Re1 (24. Bh7+ Kh8 25. Bf5+ Kg8 26. Re1 Bxg2+ 27. Kg1 Qe5 28. Bh7+ Kh8 29. Bg6+ Kg8 30. Qh7+ Kf8 31. Qxf7#) 24... Bxg2+ 25. Kg1) 22. Bxh7+ {[%emt 0:00:25]} Kh8 {[%emt 0:00:01]} 23. Bf5+ {An uneventful encounter.   Weighted Error Value: White=0.05 (flawless) /Black=0.05 (flawless) .  Inaccurate:     	---       	Black=1      OK:         	White=3     	Black=4      Best:        	White=1     	---        Strong:       	White=1     	Black=1} 1/2-1/2

[Event "SixDays Budapest IM-A January 2024"]
[Site "Budapest"]
[Date "2024.01.31"]
[Round "8.1"]
[White "Kuru, Atilla"]
[Black "Hacker, Jonas"]
[Result "0-1"]
[ECO "D04"]
[WhiteElo "2220"]
[BlackElo "2420"]
[Annotator "RC"]
[PlyCount "78"]
[EventDate "2024.01.26"]
[EventType "tourn"]
[EventCountry "HUN"]
[SourceTitle "playchess.com"]
[Source "ChessBase"]
[SourceQuality "1"]
[TimeControl "5400+30"]

1. d4 {[%emt 0:11:02]} d5 {[%emt 0:01:14]} 2. Nf3 {[%emt 0:00:12]} Nf6 {[%emt 0:00:11]} 3. e3 {[%emt 0:00:05]} c5 {[%emt 0:00:32]} 4. Bd3 {[%emt 0:00:28]} c4 {[%emt 0:03:06]} 5. Be2 {[%emt 0:00:12]} b5 {[%emt 0:00:24]} 6. a4 {[%emt 0:04:38]} b4 {[%emt 0:01:42]} 7. Ne5 {[%emt 0:00:23]} a5 {[%emt 0:04:10]} 8. Nd2 {[%emt 0:01:26]} Nbd7 {[%emt 0:04:55]} 9. f4 {[%emt 0:00:23]} e6 {[%emt 0:05:56]} 10. O-O {[%emt 0:01:46]} Bb7 {[%emt 0:03:07]} 11. g4 {[%emt 0:02:14]} Bd6 {[%emt 0:06:53]} 12. Bf3 {[%emt 0:03:28]} Qc7 {[%emt 0:02:57]} 13. c3 {[%emt 0:01:56]} O-O {[%emt 0:10:53]} 14. g5 {[%emt 0:01:14]} Ne8 {[%emt 0:04:46]} 15. Bg2 {[%emt 0:02:55]} f6 {[%emt 0:04:34]} 16. Nxd7 {[%emt 0:12:41]} Qxd7 {[%emt 0:00:17]} 17. Qg4 {[%emt 0:01:27]} f5 {[%emt 0:01:47]} 18. Qf3 {[%emt 0:00:41]} Rc8 {[%emt 0:02:34]} 19. h4 {[%emt 0:02:31]} b3 {[%emt 0:01:40]} 20. h5 {[%emt 0:00:45]} Bc6 {[%emt 0:01:42]} 21. Nb1 {[%emt 0:00:33]} Bxa4 {[%emt 0:02:29]} 22. Rf2 {[%emt 0:00:05]} Bc7 {[%emt 0:01:21]} 23. Na3 {[%emt 0:00:25]} Nd6 {[%emt 0:00:54]} 24. Kf1 {[%emt 0:00:50]} Bc6 25. Ke1 {[%emt 0:00:20]} Bd8 {[%emt 0:03:07]} 26. Kd1 {[%emt 0:00:26]} Ne4 {[%emt 0:03:02]} 27. Qe2 {[%emt 0:00:30]} Nd6 {[%emt 0:03:23]} 28. Qf3 {[%emt 0:03:52]} Be7 {[%emt 0:01:13]} 29. Kd2 {[%emt 0:00:29]} e5 {[%emt 0:05:39]} 30. dxe5 {[%emt 0:00:33]} d4 {[%emt 0:00:51]} 31. Qe2 {[%emt 0:01:53]} Ne4+ {[%emt 0:07:16]} 32. Bxe4 {[%emt 0:01:51]} dxe3+ {[%emt 0:01:24]} 33. Kxe3 {[%emt 0:00:03]} Bxe4 {[%emt 0:01:42]} 34. Qd2 {[%emt 0:00:14]} Qc6 {[%emt 0:03:37]} 35. Qe2 {[%emt 0:00:51]} Bd3 {[%emt 0:01:31]} 36. Qf3 {[%emt 0:00:05]} Bc5+ {[%emt 0:00:49]} 37. Kd2 {[%emt 0:00:05]} Bxf2 {[%emt 0:00:47]} 38. Qxf2 {[%emt 0:00:08]} Rfd8 {[%emt 0:00:21]} 39. Ke1 {[%emt 0:00:25]} Qh1+ {[%emt 0:00:12]} 0-1

[Event "SixDays Budapest IM-A January 2024"]
[Site "Budapest"]
[Date "2024.01.31"]
[Round "8.2"]
[White "Urhegyi, Marton"]
[Black "Szalay-Ocsak, Bank"]
[Result "0-1"]
[ECO "B53"]
[WhiteElo "2255"]
[BlackElo "2165"]
[Annotator "RC"]
[PlyCount "98"]
[EventDate "2024.01.26"]
[EventType "tourn"]
[EventCountry "HUN"]
[SourceTitle "playchess.com"]
[Source "ChessBase"]
[SourceQuality "1"]
[TimeControl "5400+30"]

1. e4 {[%emt 0:00:04]} c5 {[%emt 0:00:09]} 2. Nf3 {[%emt 0:00:33]} d6 {[%emt 0:00:10]} 3. d4 {[%emt 0:00:10]} cxd4 {[%emt 0:00:06]} 4. Qxd4 {[%emt 0:00:31]} Nc6 {[%emt 0:00:36]} 5. Qe3 {[%emt 0:00:12]} g6 {[%emt 0:02:49]} 6. c4 {[%emt 0:01:57]} Bg7 {[%emt 0:00:22]} 7. Be2 {[%emt 0:00:38]} Nf6 {[%emt 0:00:20]} 8. Nc3 {[%emt 0:02:07]} O-O {[%emt 0:03:25]} 9. O-O {[%emt 0:00:15]} Qa5 {[%emt 0:13:43]} 10. h3 {[%emt 0:04:10]} h6 {[%emt 0:04:53]} 11. Nd5 {[%emt 0:07:18]} Qc5 {[%emt 0:17:12]} 12. Qd3 {[%emt 0:09:16]} Nxd5 {[%emt 0:08:42]} 13. exd5 {[%emt 0:04:00]} Bf5 {[%emt 0:00:08]} 14. Qb3 {[%emt 0:01:35]} Nd4 {[%emt 0:00:54]} 15. Nxd4 {[%emt 0:00:44]} Qxd4 {[%emt 0:00:08]} 16. Rd1 {[%emt 0:10:00]} Qe5 {[%emt 0:07:47]} 17. Bd3 {[%emt 0:01:57]} Bxd3 {[%emt 0:06:35]} 18. Qxd3 {[%emt 0:00:17]} a6 {[%emt 0:00:34]} 19. Rb1 {[%emt 0:03:00]} Rfc8 {[%emt 0:03:18]} 20. Bd2 {[%emt 0:07:04]} Qh5 {[%emt 0:06:13]} 21. Re1 {[%emt 0:02:40]} Bf6 {[%emt 0:00:42]} 22. Re4 {[%emt 0:06:55]} b5 {[%emt 0:06:11]} 23. g4 {[%emt 0:12:48]} bxc4 {[%emt 0:00:08]} 24. Rxc4 {[%emt 0:00:30]} Qh4 {[%emt 0:01:31]} 25. Re4 {[%emt 0:05:11]} Bg7 {[%emt 0:02:20]} 26. Kg2 {[%emt 0:08:14]} Rab8 {[%emt 0:05:42]} 27. b4 {[%emt 0:00:35]} Rc7 {[%emt 0:03:33]} 28. a4 {[%emt 0:01:07]} Rbc8 {[%emt 0:00:50]} 29. Qxa6 {[%emt 0:02:22]} Rc2 {[%emt 0:00:33]} 30. Rd1 {[%emt 0:05:21]} R8c3 {[%emt 0:01:13]} 31. Re3 {[%emt 0:01:15]} Bd4 {[%emt 0:00:25]} 32. Rg3 {[%emt 0:01:09]} Qf6 {[%emt 0:01:47]} 33. Qe2 {[%emt 0:00:38]} Rc4 {[%emt 0:01:53]} 34. Rf3 {[%emt 0:01:11]} Qh4 {[%emt 0:00:07]} 35. Qd3 {[%emt 0:00:40]} h5 {[%emt 0:01:40]} 36. g5 {[%emt 0:01:17]} Be5 {[%emt 0:00:52]} 37. a5 {[%emt 0:00:35]} Ra2 {[%emt 0:00:34]} 38. b5 {[%emt 0:00:34]} Rd4 {[%emt 0:00:48]} 39. Qe3 {[%emt 0:00:21]} Rxd5 {[%emt 0:00:30]} 40. b6 {[%emt 0:00:41]} Rb5 {[%emt 0:00:17]} 41. Kf1 {[%emt 0:00:33]} Qc4+ {[%emt 0:00:31]} 42. Qd3 {[%emt 0:00:17]} Qa4 {[%emt 0:00:45]} 43. Be1 {[%emt 0:00:33]} Rbb2 {[%emt 0:00:27]} 44. Rb1 {[%emt 0:00:25]} Qc6 {[%emt 0:00:30]} 45. Rxb2 {[%emt 0:00:21]} Rxb2 {[%emt 0:00:03]} 46. Qa3 {[%emt 0:00:46]} Rb1 {[%emt 0:00:43]} 47. Qe3 {[%emt 0:00:41]} Bd4 {[%emt 0:00:36]} 48. Qe2 {[%emt 0:00:02]} Bc3 {[%emt 0:00:25]} 49. Rxc3 {[%emt 0:00:55]} Qh1# {[%emt 0:00:07]} 0-1

[Event "SixDays Budapest IM-A January 2024"]
[Site "Budapest"]
[Date "2024.01.31"]
[Round "8.3"]
[White "Cieslak, Patryk"]
[Black "Lim, Zhuo Ren"]
[Result "1/2-1/2"]
[ECO "B31"]
[WhiteElo "2284"]
[BlackElo "2218"]
[Annotator "ChessBase"]
[PlyCount "227"]
[EventDate "2024.01.26"]
[EventType "tourn"]
[EventCountry "HUN"]
[SourceTitle "playchess.com"]
[Source "ChessBase"]
[SourceQuality "1"]
[TimeControl "5400+30"]

1. e4 {[%emt 0:00:02]} c5 {[%emt 0:00:41]} 2. Nf3 {[%emt 0:00:03]} Nc6 {[%emt 0:00:06]} 3. Bb5 {[%emt 0:00:06]} g6 {[%emt 0:00:09]} 4. Bxc6 {[%emt 0:00:11]} dxc6 {[%emt 0:00:09]} 5. d3 {[%emt 0:00:17]} Bg7 {[%emt 0:00:13]} 6. h3 {[%emt 0:00:03]} Nf6 {[%emt 0:00:20]} 7. Nc3 {[%emt 0:00:15]} Nd7 {[%emt 0:00:36]} 8. Be3 {[%emt 0:00:11]} b6 {[%emt 0:01:22]} 9. Qd2 {[%emt 0:01:00]} h6 {[%emt 0:00:19]} 10. O-O {[%emt 0:03:14]} e5 {[%emt 0:00:14]} 11. Nh2 {[%emt 0:00:08]} Nf8 {[%emt 0:00:22]} 12. f4 {[%emt 0:01:05]} exf4 {[%emt 0:00:10]} 13. Bxf4 {[%emt 0:00:04]} Ne6 {[%emt 0:00:18]} 14. Be3 {[%emt 0:00:03]} Nd4 {[%emt 0:00:54]} 15. Rae1 {[%emt 0:03:27]} Be6 {[%emt 0:00:46]} 16. e5 {[%emt 0:07:19]} Nf5 {[%emt 0:00:57]} 17. Bf2 {[%emt 0:02:37]} Qc7 {[%emt 0:05:58]} 18. Nf3 {[%emt 0:07:19]} O-O-O {[%emt 0:04:38]} 19. b3 {[%emt 0:02:05]} Rhe8 {[%emt 0:07:40]} 20. Ne4 {[%emt 0:07:52]} Bd5 {[%emt 0:01:49]} 21. g4 {[%emt 0:02:59]} Bxe4 {[%emt 0:03:45]} 22. Rxe4 {[%emt 0:00:03]} Nd4 {[%emt 0:00:17]} 23. Nxd4 {[%emt 0:16:15]} cxd4 {[%emt 0:00:08]} 24. Bxd4 {[%emt 0:00:27]} Bxe5 {[%emt 0:08:19]} 25. Bxe5 {[%emt 0:00:25]} Rxe5 {[%emt 0:00:04]} 26. Rxf7 {[%emt 0:01:32]} Qxf7 {[%emt 0:01:29]} 27. Rxe5 {[%emt 0:00:02]} Qf6 {[%emt 0:02:43]} 28. Qe2 {[%emt 0:01:10]} Kd7 {[%emt 0:01:29]} 29. d4 {[%emt 0:05:14]} Rf8 {[%emt 0:00:31]} 30. d5 {[%emt 0:03:23]} cxd5 {[%emt 0:01:17]} 31. Rxd5+ {[%emt 0:00:03]} Kc8 {[%emt 0:01:03]} 32. Re5 {[%emt 0:06:17]} h5 {[%emt 0:04:57]} 33. gxh5 {[%emt 0:05:57]} gxh5 {[%emt 0:00:23]} 34. Re8+ {[%emt 0:00:04]} Rxe8 {[%emt 0:00:30]} 35. Qxe8+ {[%emt 0:00:02]} Kc7 {[%emt 0:00:27]} 36. Qxh5 {[%emt 0:00:33]} Qd4+ {[%emt 0:00:43]} 37. Kf1 {[%emt 0:00:37]} Qf4+ {[%emt 0:00:56]} 38. Ke1 {[%emt 0:00:52]} Qc1+ {[%emt 0:01:37]} 39. Qd1 {[%emt 0:00:29]} Qe3+ {[%emt 0:00:07]} 40. Qe2 {[%emt 0:00:02]} Qxh3 {[%emt 0:00:36]} 41. Kd2 {[%emt 0:00:31]} Qh8 {[%emt 0:01:35]} 42. Qc4+ {[%emt 0:00:38]} Kb8 {[%emt 0:00:53]} 43. Qf4+ {[%emt 0:00:19]} Kb7 {[%emt 0:00:18]} 44. Qf3+ {[%emt 0:00:04]} Kb8 {[%emt 0:00:28]} 45. Qg3+ {[%emt 0:00:02]} Kb7 {[%emt 0:00:13]} 46. Qf3+ {[%emt 0:01:09]} Kb8 {[%emt 0:00:05]} 47. Qc3 {[%emt 0:00:08]} Qh6+ {[%emt 0:00:23]} 48. Kd1 {[%emt 0:00:20]} Qh1+ {[%emt 0:00:12]} 49. Kd2 {[%emt 0:00:11]} Qh6+ {[%emt 0:00:10]} 50. Qe3 {[%emt 0:00:07]} Qh8 {[%emt 0:00:03]} 51. c3 {[%emt 0:00:16]} Qh2+ {[%emt 0:04:07]} 52. Qe2 {[%emt 0:01:51]} Qg1 {[%emt 0:00:05]} 53. Kc2 {[%emt 0:00:32]} Qg6+ {[%emt 0:06:34]} 54. Kb2 {[%emt 0:00:05]} Qc6 {[%emt 0:03:06]} 55. Qe5+ {[%emt 0:00:10]} Kb7 {[%emt 0:00:14]} 56. Qe7+ {[%emt 0:00:31]} Kb8 {[%emt 0:00:10]} 57. Qd8+ {[%emt 0:00:04]} Kb7 {[%emt 0:00:06]} 58. Qd4 {[%emt 0:00:07]} Kb8 {[%emt 0:00:31]} 59. Ka3 {[%emt 0:00:11]} a5 {[%emt 0:02:06]} 60. Qe5+ {[%emt 0:04:00]} Ka7 {[%emt 0:00:16]} 61. c4 {[%emt 0:01:57]} Qd7 {[%emt 0:01:19]} 62. Qb5 {[%emt 0:05:16]} Qd2 {[%emt 0:16:43]} 63. c5 {[%emt 0:02:03]} bxc5 {[%emt 0:00:13]} 64. Qxc5+ {[%emt 0:00:02]} Kb7 {[%emt 0:00:06]} 65. Qb5+ {[%emt 0:01:09]} Kc7 {[%emt 0:00:09]} 66. Qe5+ {[%emt 0:00:47]} Kb6 {[%emt 0:01:24]} 67. Qe6+ {[%emt 0:00:03]} Kb5 {[%emt 0:02:32]} 68. Qe8+ {[%emt 0:00:55]} Kb6 {[%emt 0:00:27]} 69. Qb8+ {[%emt 0:00:02]} Kc6 {[%emt 0:00:24]} 70. Qa8+ {[%emt 0:01:43]} Kb6 {[%emt 0:00:35]} 71. Qb8+ {[%emt 0:00:18]} Kc6 {[%emt 0:00:04]} 72. Qe8+ {[%emt 0:00:05]} Kb6 {[%emt 0:00:17]} 73. Qg6+ {[%emt 0:00:03]} Kb5 {[%emt 0:00:26]} 74. Qf5+ {[%emt 0:00:19]} Kb6 {[%emt 0:00:13]} 75. Qf6+ {[%emt 0:00:09]} Kb5 {[%emt 0:00:22]} 76. Qf1+ {[%emt 0:00:05]} Kb6 {[%emt 0:00:44]} 77. Qg1+ {[%emt 0:00:06]} Kb5 {[%emt 0:00:16]} 78. Qf1+ {[%emt 0:00:11]} Kb6 {[%emt 0:00:01]} 79. Qc4 {[%emt 0:00:27]} Qd6+ {[%emt 0:01:37]} 80. Kb2 {[%emt 0:00:05]} Qd2+ {[%emt 0:00:28]} 81. Qc2 {[%emt 0:01:21]} Qd4+ {[%emt 0:00:03]} 82. Qc3 {[%emt 0:00:16]} Qf2+ {[%emt 0:00:10]} 83. Kb1 {[%emt 0:00:02]} Qf5+ {[%emt 0:00:53]} 84. Kc1 {[%emt 0:00:26]} Qf1+ {[%emt 0:02:55]} 85. Kc2 {[%emt 0:00:06]} Qf5+ {[%emt 0:01:01]} 86. Qd3 {[%emt 0:00:03]} Qf2+ {[%emt 0:00:07]} 87. Qd2 {[%emt 0:00:52]} Qf5+ {[%emt 0:00:02]} 88. Kd1 {[%emt 0:00:21]} Qg4+ {[%emt 0:01:53]} 89. Kc1 {[%emt 0:00:27]} Qg1+ {[%emt 0:00:30]} 90. Kb2 {[%emt 0:00:06]} Qc5 {[%emt 0:00:57]} 91. a3 {[%emt 0:01:34]} Qe5+ {[%emt 0:00:21]} 92. Ka2 {[%emt 0:00:19]} Qc5 {[%emt 0:00:18]} 93. Qh2 {[%emt 0:01:09]} Kb7 {[%emt 0:01:04]} 94. Qh7+ {[%emt 0:00:10]} Kb6 {[%emt 0:00:08]} 95. Qg6+ {[%emt 0:00:10]} Kb7 {[%emt 0:00:27]} 96. Qf7+ {[%emt 0:00:02]} Kb6 {[%emt 0:00:15]} 97. Qf6+ {[%emt 0:00:17]} Kb7 {[%emt 0:00:16]} 98. Kb2 {[%emt 0:00:17]} Ka7 {[%emt 0:00:28]} 99. Qf7+ {[%emt 0:00:19]} Kb6 {[%emt 0:00:04]} 100. Qe6+ {[%emt 0:00:04]} Kb7 {[%emt 0:00:21]} 101. Qe4+ {[%emt 0:00:21]} Kb6 {[%emt 0:00:09]} 102. Qe6+ {[%emt 0:00:31]} Kb7 {[%emt 0:00:03]} 103. Qf7+ {[%emt 0:00:04]} Kb6 {[%emt 0:00:06]} 104. Qf6+ {[%emt 0:00:02]} Kb7 {[%emt 0:00:05]} 105. Qf4 {[%emt 0:00:03]} Ka7 {[%emt 0:00:25]} 106. b4 {[%emt 0:00:26]} axb4 {[%emt 0:00:04]} 107. axb4 {[%emt 0:00:02]} Qd5 {[%emt 0:00:28]} 108. Qe3+ {[%emt 0:00:10]} Ka6 {[%emt 0:00:23]} 109. Ka3 {[%emt 0:00:02]} Qc4 {[%emt 0:00:26]} 110. Qh6+ {[%emt 0:00:23]} Kb7 {[%emt 0:01:13]} 111. Qg7+ {[%emt 0:00:03]} Qc7 {[%emt 0:00:36]} 112. Qg2+ {[%emt 0:00:38]} Qc6 {[%emt 0:00:11]} 113. Qg7+ {[%emt 0:00:09]} Ka6 {[%emt 0:00:34]} 114. b5+ {[%emt 0:00:23]} 1/2-1/2